[Event "Betsys MČR v online bleskovém šachu 2021"]
[Site "Chess.com"]
[Date "2021.04.17"]
[Round "7"]
[White "RomanHlavicka"]
[Black "Jeff_CZE"]
[Result "0-1"]
[WhiteElo "1527"]
[BlackElo "1853"]
[TimeControl "180+1"]
[EndTime "10:12:15 PDT"]
[Termination "Uživatel Jeff_CZE zvítězil matem"]

1. e4 {[%clk 0:03:00.9]} 1... e6 {[%clk 0:02:54.9]} 2. Nf3 {[%clk 0:02:59]} 2...
d5 {[%clk 0:02:55.2]} 3. e5 {[%clk 0:02:57.7]} 3... c5 {[%clk 0:02:54.9]} 4. d4
{[%clk 0:02:57.8]} 4... Qb6 {[%clk 0:02:53.7]} 5. c3 {[%clk 0:02:51.3]} 5... Bd7
{[%clk 0:02:53.8]} 6. a3 {[%clk 0:02:49.3]} 6... Bb5 {[%clk 0:02:54]} 7. Be2
{[%clk 0:02:43.7]} 7... Nc6 {[%clk 0:02:50.8]} 8. O-O {[%clk 0:02:34.1]} 8...
Bxe2 {[%clk 0:02:43.8]} 9. Qxe2 {[%clk 0:02:30.4]} 9... cxd4 {[%clk 0:02:44]}
10. cxd4 {[%clk 0:02:27.1]} 10... Rc8 {[%clk 0:02:43.4]} 11. Be3 {[%clk
0:02:20.4]} 11... Na5 {[%clk 0:02:40]} 12. Nc3 {[%clk 0:02:16.3]} 12... Nc4
{[%clk 0:02:30.2]} 13. b4 {[%clk 0:01:58.5]} 13... a6 {[%clk 0:02:23.6]} 14.
Rfc1 {[%clk 0:01:55]} 14... Qa7 {[%clk 0:02:12.7]} 15. Na4 {[%clk 0:01:46.3]}
15... Ne7 {[%clk 0:02:00]} 16. Nc5 {[%clk 0:01:41.9]} 16... b6 {[%clk
0:01:53.7]} 17. Na4 {[%clk 0:01:36.2]} 17... Nf5 {[%clk 0:01:45.9]} 18. Nd2
{[%clk 0:01:31.8]} 18... Nfxe3 {[%clk 0:01:35.7]} 19. fxe3 {[%clk 0:01:31.4]}
19... b5 {[%clk 0:01:35.7]} 20. Nxc4 {[%clk 0:01:20.6]} 20... dxc4 {[%clk
0:01:33.2]} 21. Nc5 {[%clk 0:01:18.1]} 21... Be7 {[%clk 0:01:24.8]} 22. Rf1
{[%clk 0:01:08.7]} 22... Bxc5 {[%clk 0:01:18.6]} 23. bxc5 {[%clk 0:01:02.1]}
23... O-O {[%clk 0:01:15.6]} 24. Rf3 {[%clk 0:00:59.9]} 24... Qb7 {[%clk
0:00:52.9]} 25. Rh3 {[%clk 0:00:53.3]} 25... Qe4 {[%clk 0:00:51.5]} 26. Rf1
{[%clk 0:00:49.5]} 26... f5 {[%clk 0:00:30.5]} 27. Rf4 {[%clk 0:00:38.4]} 27...
Qb1+ {[%clk 0:00:29.7]} 28. Kf2 {[%clk 0:00:36.7]} 28... c3 {[%clk 0:00:18.4]}
29. Rfh4 {[%clk 0:00:35.4]} 29... f4 {[%clk 0:00:14.2]} 30. Rxh7 {[%clk
0:00:34.3]} 30... Qxh7 {[%clk 0:00:12.7]} 31. Rxh7 {[%clk 0:00:31]} 31... fxe3+
{[%clk 0:00:13]} 32. Kxe3 {[%clk 0:00:28.9]} 32... Kxh7 {[%clk 0:00:12.5]} 33.
Qd3+ {[%clk 0:00:29]} 33... Kg8 {[%clk 0:00:12.4]} 34. Qxc3 {[%clk 0:00:28.8]}
34... Rf5 {[%clk 0:00:11.4]} 35. g3 {[%clk 0:00:28.1]} 35... Rcf8 {[%clk
0:00:11]} 36. Ke2 {[%clk 0:00:25.7]} 36... Rf2+ {[%clk 0:00:10.8]} 37. Kd1
{[%clk 0:00:23.4]} 37... Rf1+ {[%clk 0:00:11.1]} 38. Kc2 {[%clk 0:00:20.6]}
38... R8f2+ {[%clk 0:00:11.6]} 39. Kb3 {[%clk 0:00:20.6]} 39... Rb1+ {[%clk
0:00:09.8]} 40. Qb2 {[%clk 0:00:16.9]} 40... Rfxb2+ {[%clk 0:00:08.8]} 41. Kc3
{[%clk 0:00:15.6]} 41... Rb3+ {[%clk 0:00:09.2]} 42. Kc2 {[%clk 0:00:15.2]}
42... R1b2+ {[%clk 0:00:09]} 43. Kc1 {[%clk 0:00:14]} 43... Rxh2 {[%clk
0:00:09.2]} 44. c6 {[%clk 0:00:12.3]} 44... Rxg3 {[%clk 0:00:10.1]} 45. c7
{[%clk 0:00:10.3]} 45... Rg1# {[%clk 0:00:11]} 0-1

[Event "Betsys MČR v online bleskovém šachu 2021"]
[Site "Chess.com"]
[Date "2021.04.17"]
[Round "7"]
[White "MaTpAt113"]
[Black "VildaSt"]
[Result "0-1"]
[WhiteElo "845"]
[BlackElo "1293"]
[TimeControl "180+1"]
[EndTime "10:12:15 PDT"]
[Termination "Uživatel VildaSt zvítězil na čas"]

1. e4 {[%clk 0:03:00.9]} 1... e5 {[%clk 0:02:59.5]} 2. Nf3 {[%clk 0:03:00.1]}
2... Nc6 {[%clk 0:02:59.5]} 3. d4 {[%clk 0:02:59.5]} 3... exd4 {[%clk
0:02:58.9]} 4. Nxd4 {[%clk 0:02:58.9]} 4... Bc5 {[%clk 0:02:58.8]} 5. Be3 {[%clk
0:02:57.3]} 5... Qf6 {[%clk 0:02:57.9]} 6. c3 {[%clk 0:02:57.2]} 6... Nge7
{[%clk 0:02:47.1]} 7. Bc4 {[%clk 0:02:52.2]} 7... O-O {[%clk 0:02:46.1]} 8. O-O
{[%clk 0:02:50]} 8... a6 {[%clk 0:02:44.3]} 9. Nxc6 {[%clk 0:02:42.3]} 9... Bxe3
{[%clk 0:02:36]} 10. Nxe7+ {[%clk 0:02:33.9]} 10... Qxe7 {[%clk 0:02:34.9]} 11.
fxe3 {[%clk 0:02:31.4]} 11... b5 {[%clk 0:02:33.3]} 12. Bd3 {[%clk 0:02:17.4]}
12... Bb7 {[%clk 0:02:32.3]} 13. Qg4 {[%clk 0:02:15.1]} 13... c5 {[%clk
0:02:21.5]} 14. Qh3 {[%clk 0:02:02.5]} 14... Bc8 {[%clk 0:02:21.1]} 15. e5
{[%clk 0:01:56]} 15... h6 {[%clk 0:02:03]} 16. Qf5 {[%clk 0:01:52.8]} 16... g6
{[%clk 0:01:58.9]} 17. Qh3 {[%clk 0:01:47.9]} 17... d6 {[%clk 0:01:51.1]} 18.
exd6 {[%clk 0:01:28.1]} 18... Bxh3 {[%clk 0:01:44.6]} 19. dxe7 {[%clk 0:01:26]}
19... Rfc8 {[%clk 0:01:36.7]} 20. gxh3 {[%clk 0:01:23.1]} 20... Re8 {[%clk
0:01:28.1]} 21. Nd2 {[%clk 0:01:16.6]} 21... Rxe7 {[%clk 0:01:28]} 22. Nf3
{[%clk 0:01:16]} 22... Rxe3 {[%clk 0:01:26.8]} 23. Ne1 {[%clk 0:01:09.7]} 23...
Rd8 {[%clk 0:01:22.6]} 24. Rd1 {[%clk 0:01:02.5]} 24... Rxh3 {[%clk 0:01:20.1]}
25. Rf3 {[%clk 0:00:46]} 25... Rh4 {[%clk 0:01:12.4]} 26. Bc2 {[%clk 0:00:34.2]}
26... Rxd1 {[%clk 0:01:05]} 27. Bxd1 {[%clk 0:00:33.3]} 27... Re4 {[%clk
0:01:01.5]} 28. Nd3 {[%clk 0:00:25]} 28... Rg4+ {[%clk 0:00:55.9]} 29. Rg3
{[%clk 0:00:24.3]} 29... Re4 {[%clk 0:00:52.7]} 30. Kg2 {[%clk 0:00:20.4]} 30...
c4 {[%clk 0:00:50.3]} 31. Nc5 {[%clk 0:00:20]} 31... Re1 {[%clk 0:00:49.7]} 32.
Bf3 {[%clk 0:00:18.7]} 32... Ra1 {[%clk 0:00:48.9]} 33. a3 {[%clk 0:00:18]}
33... Ra2 {[%clk 0:00:47.9]} 34. Nd7 {[%clk 0:00:16.5]} 34... Rxb2+ {[%clk
0:00:47]} 35. Kh3 {[%clk 0:00:14.5]} 35... Rb3 {[%clk 0:00:46.9]} 36. Bd5 {[%clk
0:00:10.6]} 36... Rxa3 {[%clk 0:00:45]} 37. Nf6+ {[%clk 0:00:10.4]} 37... Kg7
{[%clk 0:00:43.9]} 38. Ne8+ {[%clk 0:00:09.7]} 38... Kf8 {[%clk 0:00:42.3]} 39.
Rf3 {[%clk 0:00:08.3]} 39... b4 {[%clk 0:00:39.2]} 40. Bxf7 {[%clk 0:00:07.7]}
40... Ke7 {[%clk 0:00:38.5]} 41. Bxg6 {[%clk 0:00:06.6]} 41... bxc3 {[%clk
0:00:37.9]} 42. Rf7+ {[%clk 0:00:06.1]} 42... Kxe8 {[%clk 0:00:34.3]} 43. Rc7+
{[%clk 0:00:03.6]} 43... Kd8 {[%clk 0:00:33.2]} 44. Rxc4 {[%clk 0:00:02.8]}
44... a5 {[%clk 0:00:32.4]} 45. Kg4 {[%clk 0:00:01.5]} 45... a4 {[%clk
0:00:31.3]} 46. Bc2 {[%clk 0:00:01.1]} 46... Ra2 {[%clk 0:00:23.4]} 0-1

[Event "Betsys MČR v online bleskovém šachu 2021"]
[Site "Chess.com"]
[Date "2021.04.17"]
[Round "7"]
[White "Jakuboss22005"]
[Black "RousekJan"]
[Result "1-0"]
[WhiteElo "2070"]
[BlackElo "1803"]
[TimeControl "180+1"]
[EndTime "10:12:16 PDT"]
[Termination "Uživatel Jakuboss22005 zvítězil po vzdání soupeře"]

1. Nf3 {[%clk 0:02:51.9]} 1... c5 {[%clk 0:02:59.1]} 2. c4 {[%clk 0:02:48.7]}
2... Nf6 {[%clk 0:02:58.6]} 3. g3 {[%clk 0:02:47.2]} 3... e6 {[%clk 0:02:58.9]}
4. Bg2 {[%clk 0:02:43.1]} 4... Be7 {[%clk 0:02:59]} 5. O-O {[%clk 0:02:42.6]}
5... O-O {[%clk 0:02:59.4]} 6. Nc3 {[%clk 0:02:42.6]} 6... Nc6 {[%clk
0:02:59.6]} 7. d4 {[%clk 0:02:42.1]} 7... cxd4 {[%clk 0:02:59.4]} 8. Nxd4 {[%clk
0:02:43]} 8... Nxd4 {[%clk 0:02:58.3]} 9. Qxd4 {[%clk 0:02:43.9]} 9... d6 {[%clk
0:02:42.8]} 10. b3 {[%clk 0:02:35.4]} 10... e5 {[%clk 0:02:28.2]} 11. Qd2 {[%clk
0:02:32.5]} 11... Rb8 {[%clk 0:02:23]} 12. Rd1 {[%clk 0:02:26.8]} 12... a6
{[%clk 0:02:09.8]} 13. Ba3 {[%clk 0:02:22.8]} 13... Ne8 {[%clk 0:02:08.3]} 14.
Nd5 {[%clk 0:02:22]} 14... Be6 {[%clk 0:01:35.9]} 15. Nxe7+ {[%clk 0:02:13.4]}
15... Qxe7 {[%clk 0:01:36.8]} 16. Bxd6 {[%clk 0:02:11]} 16... Nxd6 {[%clk
0:01:37.7]} 17. Qxd6 {[%clk 0:02:11]} 17... Qf6 {[%clk 0:01:32.8]} 18. Qd3
{[%clk 0:01:58.2]} 18... Bf5 {[%clk 0:01:03.7]} 19. Be4 {[%clk 0:01:50]} 19...
Rfd8 {[%clk 0:01:01.7]} 20. Qf3 {[%clk 0:01:47.9]} 20... Bxe4 {[%clk 0:00:41.9]}
21. Qxe4 {[%clk 0:01:46.1]} 21... Qe7 {[%clk 0:00:42.2]} 22. Kg2 {[%clk
0:01:15.8]} 22... f6 {[%clk 0:00:41.5]} 23. f4 {[%clk 0:01:07.5]} 23... Kf7
{[%clk 0:00:13.4]} 24. fxe5 {[%clk 0:01:05.4]} 24... Qxe5 {[%clk 0:00:13.4]} 25.
Qxe5 {[%clk 0:01:03.8]} 25... fxe5 {[%clk 0:00:14.3]} 26. Kf3 {[%clk 0:01:03.5]}
26... Ke6 {[%clk 0:00:14.5]} 27. Ke4 {[%clk 0:01:01]} 27... Rf8 {[%clk
0:00:13.8]} 28. Rf1 {[%clk 0:00:58.5]} 28... Rbd8 {[%clk 0:00:12.7]} 29. Rxf8
{[%clk 0:00:57.9]} 29... Rxf8 {[%clk 0:00:13.6]} 30. Ke3 {[%clk 0:00:56.6]}
30... Rd8 {[%clk 0:00:07.3]} 31. Rf1 {[%clk 0:00:53.6]} 31... g6 {[%clk
0:00:07.3]} 32. h3 {[%clk 0:00:46.8]} 32... Rd7 {[%clk 0:00:07.5]} 33. h4 {[%clk
0:00:36.5]} 33... Rd8 {[%clk 0:00:07.2]} 34. g4 {[%clk 0:00:35.7]} 34... h6
{[%clk 0:00:07.3]} 35. Rg1 {[%clk 0:00:31.5]} 35... Rg8 {[%clk 0:00:05.3]} 36.
g5 {[%clk 0:00:29.5]} 36... h5 {[%clk 0:00:04.7]} 37. Rf1 {[%clk 0:00:29.5]}
37... Ke7 {[%clk 0:00:02.5]} 38. Rf6 {[%clk 0:00:29]} 38... Rg7 {[%clk
0:00:02.6]} 39. Rb6 {[%clk 0:00:28.7]} 39... Kd8 {[%clk 0:00:01.9]} 40. Ke4
{[%clk 0:00:29.1]} 40... Kc8 {[%clk 0:00:02.4]} 41. Re6 {[%clk 0:00:26.9]} 41...
Kc7 {[%clk 0:00:03.3]} 42. Kxe5 {[%clk 0:00:25.8]} 42... Kd7 {[%clk 0:00:03.8]}
43. e4 {[%clk 0:00:21.6]} 43... b5 {[%clk 0:00:03.9]} 44. Rxa6 {[%clk
0:00:20.3]} 44... bxc4 {[%clk 0:00:03.8]} 45. Ra7+ {[%clk 0:00:20.4]} 1-0

[Event "Betsys MČR v online bleskovém šachu 2021"]
[Site "Chess.com"]
[Date "2021.04.17"]
[Round "7"]
[White "FBingoPlayer"]
[Black "SayQueen"]
[Result "0-1"]
[WhiteElo "2182"]
[BlackElo "2008"]
[TimeControl "180+1"]
[EndTime "10:12:17 PDT"]
[Termination "Uživatel SayQueen zvítězil po vzdání soupeře"]

1. Nc3 {[%clk 0:01:20.3]} 1... d5 {[%clk 0:02:54.8]} 2. e4 {[%clk 0:01:19.6]}
2... d4 {[%clk 0:02:52.1]} 3. Nce2 {[%clk 0:01:19.5]} 3... e5 {[%clk 0:02:51.1]}
4. Ng3 {[%clk 0:01:19.6]} 4... Nf6 {[%clk 0:02:44.8]} 5. Bc4 {[%clk 0:01:18.7]}
5... Nbd7 {[%clk 0:02:26.2]} 6. Nf3 {[%clk 0:01:17.6]} 6... Be7 {[%clk
0:02:18.2]} 7. Bxf7+ {[%clk 0:01:08.7]} 7... Kxf7 {[%clk 0:02:12.7]} 8. Ng5+
{[%clk 0:01:09]} 8... Kg8 {[%clk 0:02:08]} 9. Ne6 {[%clk 0:01:09.9]} 9... Qe8
{[%clk 0:02:01.5]} 10. Nxc7 {[%clk 0:01:10.2]} 10... Qg6 {[%clk 0:01:58.3]} 11.
Nxa8 {[%clk 0:01:09.8]} 11... Nxe4 {[%clk 0:01:54.9]} 12. O-O {[%clk 0:01:08]}
12... Ndf6 {[%clk 0:01:48.7]} 13. Nc7 {[%clk 0:00:58.1]} 13... h5 {[%clk
0:01:42.9]} 14. Qf3 {[%clk 0:00:22.2]} 14... Bg4 {[%clk 0:01:32.2]} 15. Qb3+
{[%clk 0:00:21.6]} 15... Kh7 {[%clk 0:01:29.8]} 16. Qxb7 {[%clk 0:00:20.5]}
16... h4 {[%clk 0:01:23.9]} 17. Nxe4 {[%clk 0:00:11]} 17... Nxe4 {[%clk
0:01:23.4]} 18. f3 {[%clk 0:00:11.4]} 18... Bh3 {[%clk 0:01:19.3]} 19. Qxe4
{[%clk 0:00:11.3]} 19... Bf5 {[%clk 0:01:14.8]} 20. Qxe5 {[%clk 0:00:08.1]}
20... Bf6 {[%clk 0:01:10.6]} 21. Qf4 {[%clk 0:00:06.1]} 21... Rc8 {[%clk
0:01:04.9]} 22. d3 {[%clk 0:00:06]} 22... h3 {[%clk 0:00:57.1]} 23. g3 {[%clk
0:00:04.9]} 23... Be7 {[%clk 0:00:40.4]} 24. Rf2 {[%clk 0:00:04.5]} 24... Bb4
{[%clk 0:00:38.1]} 25. Qh4+ {[%clk 0:00:03.1]} 25... Kg8 {[%clk 0:00:34.1]} 26.
Nd5 {[%clk 0:00:03.6]} 26... Bd6 {[%clk 0:00:24.7]} 27. Ne7+ {[%clk 0:00:03.2]}
27... Bxe7 {[%clk 0:00:24.8]} 28. Qxe7 {[%clk 0:00:04]} 28... Re8 {[%clk
0:00:24.9]} 29. Qxe8+ {[%clk 0:00:01.5]} 29... Qxe8 {[%clk 0:00:24.1]} 30. Bd2
{[%clk 0:00:02.4]} 30... Qc6 {[%clk 0:00:20.8]} 31. Re1 {[%clk 0:00:03.3]} 31...
Qxc2 {[%clk 0:00:18.5]} 32. Bf4 {[%clk 0:00:01.9]} 32... Qc8 {[%clk 0:00:14.6]}
33. g4 {[%clk 0:00:02.4]} 33... Bg6 {[%clk 0:00:13.2]} 34. Bg3 {[%clk
0:00:02.6]} 34... Qa6 {[%clk 0:00:11.6]} 35. f4 {[%clk 0:00:03.2]} 35... Qxa2
{[%clk 0:00:10.5]} 36. f5 {[%clk 0:00:04.1]} 36... Bf7 {[%clk 0:00:10.5]} 37. f6
{[%clk 0:00:04.4]} 37... gxf6 {[%clk 0:00:09.6]} 38. Rxf6 {[%clk 0:00:03.2]}
38... Bd5 {[%clk 0:00:08.4]} 39. Rf2 {[%clk 0:00:04.1]} 39... Qa5 {[%clk
0:00:06.9]} 40. Be5 {[%clk 0:00:04.5]} 40... Qxe1+ {[%clk 0:00:06.4]} 0-1

[Event "Betsys MČR v online bleskovém šachu 2021"]
[Site "Chess.com"]
[Date "2021.04.17"]
[Round "7"]
[White "bezzuton"]
[Black "tiger196223"]
[Result "1-0"]
[WhiteElo "1514"]
[BlackElo "1821"]
[TimeControl "180+1"]
[EndTime "10:12:17 PDT"]
[Termination "Uživatel bezzuton zvítězil na čas"]

1. d4 {[%clk 0:03:00.9]} 1... e6 {[%clk 0:03:00]} 2. e4 {[%clk 0:02:58.9]} 2...
d5 {[%clk 0:03:00.3]} 3. e5 {[%clk 0:02:58.6]} 3... c5 {[%clk 0:02:59.7]} 4. c3
{[%clk 0:02:57.7]} 4... Qb6 {[%clk 0:02:59.2]} 5. Nf3 {[%clk 0:02:53.6]} 5...
Bd7 {[%clk 0:02:59.5]} 6. Qb3 {[%clk 0:02:47.7]} 6... Qxb3 {[%clk 0:02:58.1]} 7.
axb3 {[%clk 0:02:47.5]} 7... cxd4 {[%clk 0:02:54.9]} 8. cxd4 {[%clk 0:02:44.7]}
8... Nc6 {[%clk 0:02:50.5]} 9. Bd2 {[%clk 0:02:34]} 9... Bb4 {[%clk 0:02:48.3]}
10. Nc3 {[%clk 0:02:32.3]} 10... Nge7 {[%clk 0:02:35.7]} 11. Nb5 {[%clk
0:02:32.2]} 11... O-O {[%clk 0:02:18.7]} 12. Bd3 {[%clk 0:02:15]} 12... a6
{[%clk 0:02:08.4]} 13. Nd6 {[%clk 0:02:14]} 13... Bxd6 {[%clk 0:02:04.4]} 14.
exd6 {[%clk 0:02:11.1]} 14... Nc8 {[%clk 0:02:02]} 15. Ne5 {[%clk 0:02:08.5]}
15... Nxe5 {[%clk 0:01:46.6]} 16. dxe5 {[%clk 0:02:07.5]} 16... f6 {[%clk
0:01:45.9]} 17. f4 {[%clk 0:02:04.4]} 17... fxe5 {[%clk 0:01:45.5]} 18. fxe5
{[%clk 0:02:04.1]} 18... Na7 {[%clk 0:01:44.5]} 19. Ke2 {[%clk 0:01:53.1]} 19...
Nc6 {[%clk 0:01:43]} 20. Ke3 {[%clk 0:01:29.8]} 20... Nxe5 {[%clk 0:01:35.6]}
21. Bc2 {[%clk 0:01:26.4]} 21... Nf7 {[%clk 0:01:20.2]} 22. Bb4 {[%clk
0:01:22.5]} 22... Bc6 {[%clk 0:01:12.2]} 23. Rhf1 {[%clk 0:01:00.6]} 23... e5
{[%clk 0:00:28.6]} 24. Bf5 {[%clk 0:00:46.8]} 24... d4+ {[%clk 0:00:22.3]} 25.
Kd2 {[%clk 0:00:43.5]} 25... Bxg2 {[%clk 0:00:21.7]} 26. Rf2 {[%clk 0:00:43]}
26... Bd5 {[%clk 0:00:20.9]} 27. d7 {[%clk 0:00:38.2]} 27... Rfd8 {[%clk
0:00:20.3]} 28. Be7 {[%clk 0:00:37.3]} 28... e4 {[%clk 0:00:19.7]} 29. Rf4
{[%clk 0:00:27.1]} 29... Nh6 {[%clk 0:00:11.2]} 30. Bh3 {[%clk 0:00:26.1]} 30...
e3+ {[%clk 0:00:09.2]} 31. Kd3 {[%clk 0:00:22.4]} 31... Bxb3 {[%clk 0:00:09]}
32. Bxd8 {[%clk 0:00:19.7]} 32... Rxd8 {[%clk 0:00:08.1]} 33. Rc1 {[%clk
0:00:17.8]} 33... Nf7 {[%clk 0:00:05]} 34. Rc8 {[%clk 0:00:16.9]} 34... Ba4
{[%clk 0:00:04]} 35. Rxf7 {[%clk 0:00:12.6]} 35... Kxf7 {[%clk 0:00:03]} 36.
Rxd8 {[%clk 0:00:12.5]} 36... e2 {[%clk 0:00:02]} 37. Kxe2 {[%clk 0:00:10.4]}
37... Bb5+ {[%clk 0:00:01.5]} 38. Kd2 {[%clk 0:00:10]} 38... Ke7 {[%clk
0:00:01.6]} 39. Re8+ {[%clk 0:00:09.9]} 1-0

[Event "Betsys MČR v online bleskovém šachu 2021"]
[Site "Chess.com"]
[Date "2021.04.17"]
[Round "7"]
[White "vaclavbelaska"]
[Black "Dejfos"]
[Result "0-1"]
[WhiteElo "1397"]
[BlackElo "1779"]
[TimeControl "180+1"]
[EndTime "10:12:18 PDT"]
[Termination "Uživatel Dejfos zvítězil na čas"]

1. d4 {[%clk 0:02:59.8]} 1... Nf6 {[%clk 0:02:48.2]} 2. c4 {[%clk 0:02:57.1]}
2... c5 {[%clk 0:02:47.2]} 3. d5 {[%clk 0:02:54.9]} 3... d6 {[%clk 0:02:46.6]}
4. Nc3 {[%clk 0:02:52.3]} 4... g6 {[%clk 0:02:44]} 5. b3 {[%clk 0:02:50.3]} 5...
Bg7 {[%clk 0:02:40.8]} 6. Bb2 {[%clk 0:02:48.4]} 6... O-O {[%clk 0:02:39.5]} 7.
e4 {[%clk 0:02:44.5]} 7... a6 {[%clk 0:02:32]} 8. Nf3 {[%clk 0:02:42.8]} 8...
Bg4 {[%clk 0:02:31]} 9. Be2 {[%clk 0:02:42]} 9... Bxf3 {[%clk 0:02:30.5]} 10.
gxf3 {[%clk 0:02:36.9]} 10... Nbd7 {[%clk 0:02:26.9]} 11. f4 {[%clk 0:02:33.9]}
11... Nxe4 {[%clk 0:02:17.2]} 12. Nxe4 {[%clk 0:02:27.2]} 12... Bxb2 {[%clk
0:02:17.6]} 13. Rb1 {[%clk 0:02:26.1]} 13... Bg7 {[%clk 0:02:17.9]} 14. f5
{[%clk 0:02:24.1]} 14... Nf6 {[%clk 0:02:16.8]} 15. Nxf6+ {[%clk 0:02:21.4]}
15... Bxf6 {[%clk 0:02:10.7]} 16. fxg6 {[%clk 0:02:14.4]} 16... fxg6 {[%clk
0:02:10.6]} 17. Bd3 {[%clk 0:01:56.4]} 17... Bc3+ {[%clk 0:02:08.3]} 18. Ke2
{[%clk 0:01:52.1]} 18... Bd4 {[%clk 0:02:07.9]} 19. f3 {[%clk 0:01:49.2]} 19...
Qe8 {[%clk 0:01:59.8]} 20. Qc2 {[%clk 0:01:38.1]} 20... Qf7 {[%clk 0:01:57.8]}
21. Rbf1 {[%clk 0:01:26.8]} 21... e6 {[%clk 0:01:44.2]} 22. dxe6 {[%clk
0:01:19.7]} 22... Qxe6+ {[%clk 0:01:43.8]} 23. Be4 {[%clk 0:01:18.3]} 23... Kh8
{[%clk 0:01:38.6]} 24. Kd2 {[%clk 0:01:11.6]} 24... b5 {[%clk 0:01:35.5]} 25.
Re1 {[%clk 0:01:09.1]} 25... bxc4 {[%clk 0:01:34]} 26. Bxa8 {[%clk 0:01:05.6]}
26... c3+ {[%clk 0:01:29.9]} 27. Kd1 {[%clk 0:00:54.9]} 27... Qf6 {[%clk
0:01:12.9]} 28. Be4 {[%clk 0:00:50.7]} 28... Rd8 {[%clk 0:00:58.8]} 29. Rhf1
{[%clk 0:00:48.2]} 29... d5 {[%clk 0:00:58.5]} 30. Bd3 {[%clk 0:00:46.1]} 30...
c4 {[%clk 0:00:56]} 31. bxc4 {[%clk 0:00:43.5]} 31... dxc4 {[%clk 0:00:55.5]}
32. Bxc4 {[%clk 0:00:41.5]} 32... Be3+ {[%clk 0:00:54.9]} 33. Bd3 {[%clk
0:00:37.8]} 33... Bd2 {[%clk 0:00:50.8]} 34. Re2 {[%clk 0:00:35.7]} 34... Qd4
{[%clk 0:00:41.5]} 35. Rxd2 {[%clk 0:00:13.5]} 35... cxd2 {[%clk 0:00:40.2]} 36.
Qxd2 {[%clk 0:00:06.7]} 36... Qxd3 {[%clk 0:00:37.4]} 37. Qxd3 {[%clk
0:00:06.7]} 37... Rxd3+ {[%clk 0:00:38]} 38. Kc2 {[%clk 0:00:06.8]} 38... Ra3
{[%clk 0:00:37.9]} 39. Kb2 {[%clk 0:00:05.1]} 39... Re3 {[%clk 0:00:37.7]} 40.
Rf2 {[%clk 0:00:04.6]} 40... Kg7 {[%clk 0:00:35.2]} 41. f4 {[%clk 0:00:03.6]}
41... Kf6 {[%clk 0:00:35.2]} 42. Rd2 {[%clk 0:00:03.2]} 42... Kf5 {[%clk
0:00:34.5]} 43. Rd5+ {[%clk 0:00:02.6]} 43... Kxf4 {[%clk 0:00:33.8]} 44. Rd6
{[%clk 0:00:01]} 44... Re2+ {[%clk 0:00:33.7]} 0-1

[Event "Betsys MČR v online bleskovém šachu 2021"]
[Site "Chess.com"]
[Date "2021.04.17"]
[Round "7"]
[White "DominikS3"]
[Black "Emicka1330"]
[Result "1-0"]
[WhiteElo "1343"]
[BlackElo "1602"]
[TimeControl "180+1"]
[EndTime "10:12:18 PDT"]
[Termination "Uživatel DominikS3 zvítězil matem"]

1. d4 {[%clk 0:03:00.9]} 1... Nf6 {[%clk 0:02:58.5]} 2. c4 {[%clk 0:02:59.9]}
2... c5 {[%clk 0:02:56.9]} 3. d5 {[%clk 0:02:58.6]} 3... b5 {[%clk 0:02:56]} 4.
cxb5 {[%clk 0:02:56.6]} 4... a6 {[%clk 0:02:55.4]} 5. b6 {[%clk 0:02:56.2]} 5...
Qxb6 {[%clk 0:02:52.7]} 6. Nc3 {[%clk 0:02:55.6]} 6... d6 {[%clk 0:02:48]} 7. e4
{[%clk 0:02:54.9]} 7... g6 {[%clk 0:02:47.1]} 8. Qc2 {[%clk 0:02:34]} 8... Bg7
{[%clk 0:02:46.5]} 9. Bd3 {[%clk 0:02:28.7]} 9... O-O {[%clk 0:02:43.7]} 10. f4
{[%clk 0:02:21.8]} 10... Nbd7 {[%clk 0:02:35.4]} 11. Nf3 {[%clk 0:02:19.1]}
11... Re8 {[%clk 0:02:27.2]} 12. Be3 {[%clk 0:02:13.8]} 12... Bb7 {[%clk
0:02:18.7]} 13. b3 {[%clk 0:02:10.2]} 13... Ng4 {[%clk 0:02:17]} 14. Bd2 {[%clk
0:02:05.2]} 14... c4 {[%clk 0:02:08.3]} 15. bxc4 {[%clk 0:01:45.5]} 15... Qf2+
{[%clk 0:02:04.9]} 16. Kd1 {[%clk 0:01:40.1]} 16... Qxg2 {[%clk 0:02:01.6]} 17.
Rg1 {[%clk 0:01:37.6]} 17... Qxf3+ {[%clk 0:02:00.2]} 18. Be2 {[%clk 0:01:34.5]}
18... Qh3 {[%clk 0:01:48.2]} 19. Bxg4 {[%clk 0:01:31]} 19... Qxh2 {[%clk
0:01:45.8]} 20. Re1 {[%clk 0:01:14.3]} 20... Qg1 {[%clk 0:01:46.7]} 21. Rxg1
{[%clk 0:01:08]} 21... h5 {[%clk 0:01:38.7]} 22. Bxd7 {[%clk 0:01:07.4]} 22...
Red8 {[%clk 0:01:38]} 23. Ba4 {[%clk 0:01:06.1]} 23... Rdc8 {[%clk 0:01:36.4]}
24. Bb3 {[%clk 0:01:03.7]} 24... a5 {[%clk 0:01:35.1]} 25. a4 {[%clk 0:01:02]}
25... Ba6 {[%clk 0:01:34.2]} 26. e5 {[%clk 0:00:59]} 26... Bxc4 {[%clk
0:01:31.8]} 27. Bxc4 {[%clk 0:00:58.1]} 27... Rxc4 {[%clk 0:01:31.3]} 28. exd6
{[%clk 0:00:54.7]} 28... exd6 {[%clk 0:01:29.9]} 29. f5 {[%clk 0:00:54]} 29...
Rac8 {[%clk 0:01:17.1]} 30. Ra3 {[%clk 0:00:51.5]} 30... Rd4 {[%clk 0:01:03.6]}
31. fxg6 {[%clk 0:00:46.5]} 31... fxg6 {[%clk 0:01:01.6]} 32. Rxg6 {[%clk
0:00:44.2]} 32... Rc7 {[%clk 0:00:52.9]} 33. Rxd6 {[%clk 0:00:42]} 33... Rf7
{[%clk 0:00:44.2]} 34. Rd8+ {[%clk 0:00:33.5]} 34... Bf8 {[%clk 0:00:41.3]} 35.
Kc1 {[%clk 0:00:29.3]} 35... h4 {[%clk 0:00:34]} 36. Qg6+ {[%clk 0:00:27.5]}
36... Rg7 {[%clk 0:00:32.3]} 37. Qe6+ {[%clk 0:00:24.6]} 37... Rf7 {[%clk
0:00:29.7]} 38. Bh6 {[%clk 0:00:20.4]} 38... Rf4 {[%clk 0:00:17.9]} 39. Rxf8+
{[%clk 0:00:18]} 39... Kh7 {[%clk 0:00:17.2]} 40. Rxf7+ {[%clk 0:00:17.3]} 40...
Rxf7 {[%clk 0:00:15.1]} 41. Qxf7+ {[%clk 0:00:16.8]} 41... Kxh6 {[%clk
0:00:15.2]} 42. Ne4 {[%clk 0:00:16.4]} 42... h3 {[%clk 0:00:14.7]} 43. Qg8
{[%clk 0:00:15.2]} 43... Kh5 {[%clk 0:00:13.2]} 44. Qg5# {[%clk 0:00:10.3]} 1-0